Cogmind - Beta 12 *** ADVENTURER MODE // 2023.08.14 @ 20:59:33 Player: core_nxt Result: Core destroyed Performance ------------- Evolutions (3) 1500 Regions Visited (6) 1200 Robots Destroyed (155) 775 Value Destroyed (4513) 4513 Prototype IDs (38) 760 Alien Tech Used (0) 0 Bonus (483) 483 TOTAL SCORE: 9231 Bonus ------- High Alert Combat Kills 636 Follower Combat Kills 347 Friendly Fire -500 Cogmind --------- Core Integrity 0/700 Matter 300/300 Energy 100/100 System Corruption 0% Temperature Cool (0) Movement Core (50) Location -7/Factory Parts ------- > --- POWER (2) -------- (None) > --- PROPULSION (3) --- (None) > --- UTILITY (5) ------ (None) > --- WEAPON (3) ------- (None) > --- INVENTORY (5) ---- (None) Peak State ------------ > --- POWER ------------ Nuclear-Deuterium Core > --- PROPULSION ------- Hovering XBT-Armored Exoskeleton > --- UTILITY ---------- Armored Scrap Engine Medium Storage Unit Improved Signal Interpreter Experimental Targeting Computer > --- WEAPON ----------- Accelerated Assault Construct/C Katana Blade Saw > --- INVENTORY -------- Advanced Treads Armored Wheel Improved Hover Unit Cooled Gravmag System Cooled Gravmag System Improved Flight Unit Improved Flight Unit Improved Flight Unit Improved Flight Unit Improved VTOL Module Xenon Bombardment Thruster Xenon Bombardment Thruster Xenon Bombardment Thruster Xenon Bombardment Thruster Biomechanical Wings High-capacity Matter Pod Gravity Neutralizer Gravity Neutralizer Advanced Visual Processing Unit Improved Sensor Array Terrain Scanner Improved Targeting Computer Experimental Targeting Computer Actuator Array Transmission Jammer Makeshift Cloaking Device Improved Propulsion Shielding Improved Weapon Shielding Hardened Medium Armor Plating Improved Medium Armor Plating Improved Medium Armor Plating Centrium Light Armor Plating Advanced Thermal Shield Experimental Hacking Suite Authchip [R/NC] Authchip [R/NC] Authchip [R/Combat] Authchip [R/Combat] Authchip [R/Combat] Authchip [R/Combat] Authchip [Power] Authchip [Power] Authchip [Propulsion] Authchip [Device] Authchip [Processor] Authchip [Armor] Authchip [Weapon] Authchip [Weapon] 01-MTF's Autohacker Drone Bay 01-MTF's Shockpuncher Precision Rocket Launcher Precision Rocket Launcher Improved Datajack [Rating: 81] Favorites ----------- Power Cooled Ion Engine Engine Cooled Ion Engine Power Core Constructs Reactor Mini Fusion Reactor Propulsion Armored Wheel Leg Aluminum Leg Wheel Armored Wheel Hover Unit Constructs Flight Unit Biomechanical Wings Utility Medium Storage Unit Device Armored Scrap Engine Storage Medium Storage Unit Processor Signal Interpreter Protection Improved Propulsion Shielding Weapon Katana Energy Gun Beam Rifle Energy Cannon Compact Ion Cannon Ballistic Gun Improved Assault Rifle Ballistic Cannon Constructs Launcher Precision Rocket Launcher Special Weapon Plasma Cutter Slashing Weapon Katana Special Melee Weapon Datajack Build | -11 -10 -10 -9 -9 -9 -7 ------- Run | Jun Mat Min Mat Sto Rec Fac Slots Evolved 6 | . . . 2 . . 4 Power 1 | . . . . . . 1 Propulsion 1 | . . . 1 . . . Utility 3 | . . . 1 . . 2 Weapon 1 | . . . . . . 1 Parts Attached 82 | . 6 . 26 27 4 19 Power 10 | . . . 4 5 . 1 Engine 7 | . . . 2 4 . 1 Core 2 | . . . 2 . . . Reactor 1 | . . . . 1 . . Propulsion 22 | . 1 . 12 7 . 2 Treads . | . . . . . . . Leg 4 | . 1 . 3 . . . Wheel 15 | . . . 9 6 . . Hover 2 | . . . . 1 . 1 Flight 1 | . . . . . . 1 Utility 17 | . 3 . 1 8 1 4 Device 10 | . 1 . 1 5 1 2 Storage 2 | . 1 . . 1 . . Processor 3 | . 1 . . . . 2 Hackware . | . . . . . . . Protection 2 | . . . . 2 . . Artifact . | . . . . . . . Weapon 33 | . 2 . 9 7 3 12 Energy Gun 4 | . 2 . . 1 1 . Energy Cannon 1 | . . . . . . 1 Ballistic Gun 12 | . . . 3 5 . 4 Ballistic Cannon 1 | . . . . . . 1 Launcher 3 | . . . . . . 3 Special Weapon 1 | . . . 1 . . . Impact Weapon . | . . . . . . . Slashing Weapon 8 | . . . 4 . 1 3 Piercing Weapon . | . . . . . . . Special Melee Weapon 3 | . . . 1 1 1 . Unidentified Prototypes 16 | . . . 1 8 . 7 Parts Lost 54 | . 1 . 9 . . 44 Power 4 | . . . 1 . . 3 Propulsion 17 | . 1 . 4 . . 12 Utility 25 | . . . . . . 25 Weapon 8 | . . . 4 . . 4 Highest Loss Streak 41 | . 1 . 6 . . 41 To Critical Strikes . | . . . . . . . Average Slot Usage (%) 82 | . 93 100 88 97 69 64 Engine 9 | . 14 14 9 10 11 4 Treads 1 | . . . . . 5 . Leg 7 | . 27 28 10 . . . Wheel 12 | . . . 17 31 12 5 Device 8 | . 3 . 8 10 11 11 Storage 10 | . 14 14 11 11 11 7 Processor 7 | . 5 14 11 11 . 8 Energy Gun 5 | . 19 28 4 . . . Ballistic Gun 7 | . 7 . 5 10 7 8 Slashing Weapon 7 | . . . 7 11 9 7 Naked Turns . | . . . . . . . Heaviest Build 45 | 14 22 21 24 24 24 45 Greatest Support 72 | 20 20 20 36 36 48 72 Greatest Overweight (x) 2 | . 2 1 2 . . . Average Overweight (x) . | . . 1 . . . . Largest Inventory Capacity 55 | . 10 10 25 55 55 55 Average Capacity 35 | . 9 10 15 43 55 55 Most Carried 55 | . 10 10 25 55 55 55 Average Carried 33 | . 8 9 13 42 50 53 Final Capacity 55 | 8 10 10 25 55 55 5 Final Carried 55 | 6 9 10 25 55 49 . Scrap Engine Consumption 63 | . . . . . 23 40 Constructs Created 5 | . . . . . 2 3 Constructs Modified 17 | . . . . . 4 13 Class Distribution -------------------- 33% | Mutant 33% | Hauler-Mutant 24% | Hauler-Construct 8% | Scavenger-Mutant Dominant Class ---------------- Mutant | -10/Materials Mutant | -10/Mines Mutant | -9/Materials Hauler-Mutant | -9/Storage Hauler-Mutant | -9/Recycling Hauler-Construct | -7/Factory Resources | -11 -10 -10 -9 -9 -9 -7 ----------- Run | Jun Mat Min Mat Sto Rec Fac Matter Collected 1674 | 193 153 24 457 285 38 524 Remotely 52 | . 52 . . . . . Salvage Created 6817 | . 700 93 1095 748 1108 3073 Parts 204 | . 46 2 87 9 . 60 Haulers Intercepted 15 | . 1 . 2 4 . 8 Recyclers Shooed 1 | . . . 1 . . . Parts Field Recycled . | . . . . . . . Retrieved Matter . | . . . . . . . Parts Self-Destructed . | . . . . . . . Prevented . | . . . . . . . Kills | -11 -10 -10 -9 -9 -9 -7 ------- Run | Jun Mat Min Mat Sto Rec Fac Combat Hostiles Destroyed 103 | . 15 2 23 8 10 45 Melee 19 | . . . 14 3 . 2 Guns 33 | . 15 2 7 . . 9 Cannons 2 | . . . 2 . . . AOE 5 | . . . . . . 5 Classes Destroyed 16 | . 5 . 3 1 2 5 Worker 4 | . 3 . . . . 1 Builder 3 | . . . . 1 . 2 Hauler 15 | . 1 . 2 4 . 8 Recycler 11 | . . . . . 7 4 Operator 4 | . . . 1 1 . 2 Watcher 14 | . 3 . 3 1 . 7 Swarmer 25 | . 6 . 6 1 . 12 Cutter 2 | . . . . . . 2 Grunt 37 | . 9 2 8 4 2 12 Duelist 1 | . . . 1 . . . Protector 2 | . . . . . . 2 Sentry 20 | . . . 8 3 5 4 Specialist 5 | . . . . . . 5 Hunter 3 | . . . . . . 3 Programmer 6 | . . . . . 3 3 Heavy 2 | . . . . . . 2 Best Kill Streak 15 | . 5 2 5 3 11 15 Combat Bots Only 11 | . 3 2 3 2 6 11 Max Kills in Single Turn 3 | . 2 1 1 1 1 3 Gunslinging . | . . . . . . . Exploded 3 | . . . . . . 3 Melee 1 | . . . 1 1 . 1 Uniques/NPCs Destroyed 1 | . . . . 1 . . 01-MTF (-9/Storage) Combat | -11 -10 -10 -9 -9 -9 -7 -------- Run | Jun Mat Min Mat Sto Rec Fac Damage Taken 3810 | . 561 13 1110 252 298 1576 Core 708 | . 231 . 209 29 61 178 Absorbed by Shields . | . . . . . . . Regen/Repaired (Parts) 1277 | . . . 291 374 . 612 Core Remaining (%) 44 | 100 . 7 . . 25 . Volleys Fired 135 | . 41 4 34 5 . 51 Largest 2 | . 2 2 2 1 . 2 Hottest 101 | . 101 101 101 23 . 74 Shots Fired 232 | . 82 9 42 5 . 94 Gun 215 | . 82 9 27 5 . 92 Cannon 1 | . . . . . . 1 Launcher 1 | . . . . . . 1 Special 15 | . . . 15 . . . Kinetic 135 | . 32 . 6 5 . 92 Thermal 48 | . 9 4 34 . . 1 Explosive 1 | . . . . . . 1 Electromagnetic 48 | . 41 5 2 . . . Robot Hit Streak 46 | . 10 15 18 8 . 46 Robot Miss Streak 3 | . 3 . 3 1 . 3 Penetration Max . | . . . . . . . Secondary Targets 6 | . 4 . 1 . . 1 Max Gunslinging Chain 1 | . 1 . 1 . . 1 Shots Hit Robots 336 | . 60 8 84 25 23 136 Core Hits 130 | . 28 3 36 6 . 57 Critical Kills . | . . . . . . . Critical Parts Destroyed 1 | . . . . . . 1 Critical Strikes 37 | . 1 . 30 5 . 1 Burn 1 | . . . 1 . . . Destroy 1 | . . . . . . 1 Corrupt 2 | . 1 . 1 . . . Sever 33 | . . . 28 5 . . Melee Attacks 185 | . . . 56 25 29 75 Impact . | . . . . . . . Slashing 180 | . . . 56 25 24 75 Piercing . | . . . . . . . Sneak Attacks 45 | . . . 6 7 18 14 Combat Hostiles 12 | . . . . . 9 3 Follow-up Attacks . | . . . . . . . Damage Inflicted 5601 | . 1056 107 2189 380 . 1869 Guns 2710 | . 848 107 302 62 . 1391 Cannons 23 | . . . . . . 23 Explosions 483 | . 208 . . . . 275 Melee 2250 | . . . 1752 318 . 180 Ramming 5 | . . . 5 . . . Kinetic 1786 | . 289 . 44 62 . 1391 Thermal 867 | . 282 44 376 . . 165 Explosive 133 | . . . . . . 133 Electromagnetic 560 | . 485 63 12 . . . Impact . | . . . . . . . Slashing 2250 | . . . 1752 318 . 180 Piercing . | . . . . . . . Highest Corruption 1 | . 1 1 . . 1 . Average Corruption 1 | . 1 1 . . 1 . Corruption Purged . | . . . . . . . Corruption Blocked . | . . . . . . . Effects 17 | . . 8 . . 9 . Message Errors 3 | . . 1 . . 2 . Matter Fused 4 | . . 3 . . 1 . Heat Flow Errors 3 | . . . . . 3 . Energy Discharges 4 | . . 2 . . 2 . Data Loss (minor) 2 | . . 1 . . 1 . Misfires 1 | . . 1 . . . . Overload Shots . | . . . . . . . Overflow Damage 147 | . 5 . 93 . . 49 Projectiles . | . . . . . . . Explosions 54 | . 5 . . . . 49 Melee 93 | . . . 93 . . . Knockbacks . | . . . . . . . Impact . | . . . . . . . Kinetic . | . . . . . . . Secondary . | . . . . . . . Self-Inflicted Damage 108 | . 64 . . . . 44 Shots 4 | . 3 . . . . 1 Rammed . | . . . . . . . Targets Rammed 1 | . . . 1 . . . Kicked 1 | . . . 1 . . . Crushed . | . . . . . . . Highest Temperature 246 | . 143 165 120 2 246 74 Average Temperature 44 | . 36 79 51 2 106 24 Received Heat Transfer 1176 | . 120 9 474 147 18 408 Siege Activations . | . . . . . . . Robots Corrupted . | . . . . . . . Combat Hostiles . | . . . . . . . Parts Fried 3 | . 2 . . 1 . . Impact Corruptions . | . . . . . . . Robots Melted . | . . . . . . . Combat Hostiles . | . . . . . . . Parts Melted 6 | . . . 6 . . . Heat Transferred 1830 | . 485 111 1147 . . 87 Parts Sabotaged . | . . . . . . . Parts Stolen . | . . . . . . . Parts Stripped 64 | . . . . . . 64 Power Chain Reactions 5 | . 3 . . . . 2 Missiles Intercepted . | . . . . . . . Alert | -11 -10 -10 -9 -9 -9 -7 ------- Run | Jun Mat Min Mat Sto Rec Fac Peak Influence 1269 | . 314 93 184 523 159 1269 Initial 47 | . . 47 . 28 . . Average 149 | . 140 38 64 58 22 561 Maximum Alert Level 4 | . 1 . . 2 . 4 Low Security (%) 81 | . 90 100 100 93 100 10 Level 1 8 | . 9 . . 5 . 36 Level 2 3 | . . . . 1 . 17 Level 3 5 | . . . . . . 27 Level 4 1 | . . . . . . 8 Level 5 . | . . . . . . . High Security . | . . . . . . . Max Security . | . . . . . . . Squads Dispatched 19 | . 3 . 3 2 . 11 Investigation 5 | . 3 . 1 1 . . Extermination 4 | . . . . . . 4 Reinforcement 8 | . . . 2 1 . 5 Assault 1 | . . . . . . 1 Garrison 1 | . . . . . . 1 Intercept . | . . . . . . . Searches Triggered . | . . . . . . . Construction Impeded . | . . . . . . . Haulers Reinforced 1 | . . . . . . 1 Active Scanning Responses . | . . . . . . . Cargo Convoy Interrupts 1 | . . . . . . 1 Stealth | -11 -10 -10 -9 -9 -9 -7 --------- Run | Jun Mat Min Mat Sto Rec Fac Distress Signals 9 | . . . 3 1 . 5 Communications Jammed . | . . . . . . . Distress Signals . | . . . . . . . Times Spotted 171 | . 22 5 43 23 4 74 Peak Tracking Total 9 | . 4 2 6 6 4 9 Tactical Retreats 17 | . 2 1 10 . . 4 Traps | -11 -10 -10 -9 -9 -9 -7 ------- Run | Jun Mat Min Mat Sto Rec Fac Traps Triggered 11 | . 2 . 4 . . 5 Indirectly . | . . . . . . . Trap Hack Attempts 38 | . . . 10 28 . . Triggered . | . . . . . . . Disarmed 1 | . . . . 1 . . Reprogrammed 9 | . . . 3 . . 6 Reused 1 | . . . . . . 1 Traps Extracted . | . . . . . . . Installed . | . . . . . . . Triggered 1 | . . . . . . 1 Machines | -11 -10 -10 -9 -9 -9 -7 ---------- Run | Jun Mat Min Mat Sto Rec Fac Machines Disabled 5 | . . . . 5 . . Max in Single Turn 1 | . . . . 1 . . Garrison Access 1 | . . . . 1 . . Machines Repaired . | . . . . . . . Machines Sabotaged . | . . . . . . . Overloaded Fab Kills . | . . . . . . . Hacking | -11 -10 -10 -9 -9 -9 -7 --------- Run | Jun Mat Min Mat Sto Rec Fac Machines Accessed 48 | . 5 . 13 8 5 17 Terminals 37 | . 4 . 10 4 5 14 Fabricators . | . . . . . . . Repair Stations 5 | . . . 1 2 . 2 Recycling Units 2 | . 1 . . 1 . . Scanalyzers 3 | . . . 2 . . 1 Garrison Access 1 | . . . . 1 . . Total Hacks 414 | . 12 . 120 77 33 172 Successful 237 | . 5 . 88 42 17 85 Failed 177 | . 7 . 32 35 16 87 Catastrophic 25 | . . . 5 5 2 13 Database Lockouts . | . . . . . . . Manual 123 | . . . 36 32 12 43 Terminals 293 | . 11 . 62 47 33 140 Fabricators . | . . . . . . . Repair Stations 51 | . . . 17 26 . 8 Recycling Units 2 | . 1 . . 1 . . Scanalyzers 65 | . . . 41 . . 24 Garrison Access 3 | . . . . 3 . . Terminal Hacks 104 | . 4 . 17 16 14 53 Record 1 | . . . . 1 . . Part Schematic 24 | . . . . 3 5 16 Robot Schematic 3 | . . . . . 2 1 Robot Analysis 5 | . . . . . 1 4 Prototype ID Bank 8 | . 1 . 2 1 . 4 Level Access Points 2 | . . . . 1 1 . Branch Access Points 3 | . 1 . . 1 . 1 Emergency Access Points 2 | . . . 1 . . 1 Machine Index 1 | . . . . . . 1 Terminal Index 2 | . . . . . 1 1 Alert Level 2 | . 1 . . 1 . . Unreport Threat 6 | . . . 1 5 . . Locate Traps 8 | . . . 2 . . 6 Reprogram Traps 1 | . . . . . . 1 Dispatch Records 1 | . . . 1 . . . Patrol Status 1 | . . . . . 1 . Transport Status 5 | . . . . . . 5 Recall Investigation 1 | . . . 1 . . . Recall Reinforcements 2 | . . . 2 . . . Recall Assault 1 | . . . . . . 1 Hauler Manifests 8 | . . . 2 1 1 4 Registered Components 2 | . . . 1 . . 1 Registered Prototypes 4 | . 1 . 1 1 . 1 Zone Layout 11 | . . . 3 1 2 5 Fabricator Hacks . | . . . . . . . Repair Station Hacks 44 | . . . 16 22 . 6 Scan Component 22 | . . . 8 11 . 3 Repair 22 | . . . 8 11 . 3 Recycling Unit Hacks 2 | . 1 . . 1 . . Report Inventory 2 | . 1 . . 1 . . Scanalyzer 47 | . . . 37 . . 10 Insert Component 22 | . . . 16 . . 6 Analyze 25 | . . . 21 . . 4 Garrison Access Hacks 1 | . . . . 1 . . Seal Access 1 | . . . . 1 . . Unauthorized Hacks 39 | . . . 18 2 3 16 Terminals 38 | . . . 18 2 3 15 Track 4 | . . . 2 . . 2 Assimilate 6 | . . . 4 . . 2 Botnet 20 | . . . 9 2 2 7 Detonate 1 | . . . . . . 1 Disrupt 2 | . . . 1 . . 1 Operators 5 | . . . 2 . 1 2 Fabricators . | . . . . . . . Repair Stations 1 | . . . . . . 1 Mechanics 1 | . . . . . . 1 Recycling Units . | . . . . . . . Scanalyzers . | . . . . . . . Garrison Access . | . . . . . . . Data Cores Recovered 3 | . . . . 1 . 2 Used 2 | . . . . . . 2 Hacking Detections 46 | . 3 . 7 7 6 23 Full Trace Events 3 | . 3 . . . . . Feedback Events . | . . . . . . . Feedback Blocked . | . . . . . . . Robot Schematics Acquired 3 | . . . . . 2 1 Robots Built . | . . . . . . . Authchips . | . . . . . . . Time . | . . . . . . . Total Robot Build Rating . | . . . . . . . Part Schematics Acquired 44 | . . . 16 3 5 20 Parts Built . | . . . . . . . Authchips . | . . . . . . . Time . | . . . . . . . Total Part Build Rating . | . . . . . . . Parts Repaired 22 | . . . 8 11 . 3 Time 821 | . . . 287 420 . 114 Parts Recycled . | . . . . . . . Recycled Matter . | . . . . . . . Retrieved Matter . | . . . . . . . Retrieved Components . | . . . . . . . Parts Scanalyzed 20 | . . . 16 . . 4 Part Schematics Acquired 20 | . . . 16 . . 4 Parts Damaged . | . . . . . . . Bothacking | -11 -10 -10 -9 -9 -9 -7 ------------ Run | Jun Mat Min Mat Sto Rec Fac Used RIF Installer . | . . . . . . . Robots Hacked . | . . . . . . . Non-combat . | . . . . . . . Combat . | . . . . . . . Robot Hacks Applied . | . . . . . . . Relay Couplers Released . | . . . . . . . Fabnet Peak Effective % . | . . . . . . . Robots Rewired 4 | . . . . . 4 . Allies Hacked . | . . . . . . . Hacks Repelled . | . . . . . . . Allies | -11 -10 -10 -9 -9 -9 -7 -------- Run | Jun Mat Min Mat Sto Rec Fac Total Allies 10 | . . 3 1 2 4 . Largest Group 4 | . . 3 1 2 4 3 Highest-Rated Group 115 | . . 40 10 115 67 57 Highest-Rated Ally 100 | . . 16 10 100 34 34 Total Orders 1 | . . . . . 1 . COLLECT 1 | . . . . . 1 . Ally Attacks 51 | . . 13 . 30 . 8 Total Damage 1297 | . . 153 . 908 . 236 Kills 16 | . . 2 . 12 . 2 Allies Corrupted . | . . . . . . . Allies Melted . | . . . . . . . Intel | -11 -10 -10 -9 -9 -9 -7 ------- Run | Jun Mat Min Mat Sto Rec Fac Robot Analysis Total 5 | . . . . . 1 4 Derelict Logs Recovered 1 | . . 1 . . . . Drone Launches . | . . . . . . . Drone Recoveries . | . . . . . . . Exploration | -11 -10 -10 -9 -9 -9 -7 ------------- Run | Jun Mat Min Mat Sto Rec Fac Turns Passed 11464 | . 1145 1113 2524 1724 2855 2103 Spaces Moved 6287 | 1 603 559 1245 978 691 2210 Core . | . . . . . . . Treads 171 | . . . . . 171 . Legs 1941 | 1 603 559 778 . . . Wheels 3122 | . . . 467 978 520 1157 Hover 268 | . . . . . . 268 Flight 785 | . . . . . . 785 Fastest Speed 20 | 120 120 190 90 90 90 20 Average Speed 107 | 120 157 190 148 90 108 57 Slowest Speed 260 | 120 260 190 260 90 117 117 Overloaded Moves . | . . . . . . . Propulsion Burnouts . | . . . . . . . Robots Hopped . | . . . . . . . Cave-ins Triggered . | . . . . . . . Exploration Rate (%) 72 | 2 77 95 92 91 98 50 Regions Visited 6 Branch Regions 3 Pre-discovered Areas . | . . . . . . . Known Exits Taken 5 | . 1 1 1 1 1 . Unknown Exits Taken 1 | 1 . . . . . . Scrap Searched 1 | . . 1 . . . . Spaces Dug 21 | . . . 2 2 5 12 Terrain Destroyed 42 | . 7 . 2 2 5 26 Melee 21 | . . . 2 2 5 12 Projectile . | . . . . . . . AOE 21 | . 7 . . . . 14 Terrain Rammed . | . . . . . . . Walls Destroyed . | . . . . . . . Machines Disabled . | . . . . . . . Actions | -11 -10 -10 -9 -9 -9 -7 --------- Run | Jun Mat Min Mat Sto Rec Fac Total 10495 | . 718 603 1775 1768 2775 2856 Wait 3552 | . 53 38 370 666 2007 418 Move 6281 | . 602 558 1244 977 690 2210 Hop . | . . . . . . . Pick Up 122 | . 8 2 29 34 13 36 Fast Attach 44 | . 4 . 16 11 2 11 Attach 17 | . . . 9 . 2 6 Detach 11 | . . . . 2 6 3 Swap 21 | . 2 . 1 16 . 2 Drop 80 | . 8 1 5 4 26 36 Fire 135 | . 41 4 34 5 . 51 Melee 184 | . . . 56 25 29 74 Ram . | . . . . . . . Kick 1 | . . . 1 . . . Crush . | . . . . . . . Escape Stasis 9 | . . . . . . 9 Rewire . | . . . . . . . Trap 38 | . . . 10 28 . . Miscellaneous . | . . . . . . . Route ------- -11/Junkyard -10/Materials (discovered 3 exits: *Mat x2 / *Min) -10/Mines -9/Materials (discovered 7 exits: *Mat x3 / *Min x2 / *Sto x2) -9/Storage (discovered 2 exits: *Mat / *Rec) -9/Recycling -7/Factory (discovered 4 exits: *Fac x2 / *Low x2) History --------- Turn | Location | Event 1 | -11/Junkyard | Discovered new exit (range 0) 1 | -11/Junkyard | Entered Materials 309 | -10/Materials | Build established: Mutant 339 | -10/Materials | Discovered new exit (range 8) 548 | -10/Materials | Discovered new exit (range 9) 713 | -10/Materials | Discovered new exit (range 3) 721 | -10/Materials | Identified exit to Materials 993 | -10/Materials | Core integrity fell below 50% 993 | -10/Materials | Core integrity fell below 20% 1074 | -10/Materials | Identified exit to Mines 1146 | -10/Materials | Entered Mines 1153 | -10/Mines | Received a Rocket Launcher from a helpful Derelict 1199 | -10/Mines | Assisted by bots powering up and referring to "LRC-V3" 1990 | -10/Mines | Discovered exit to Materials (range 11) 2259 | -10/Mines | Entered Materials 2259 | -9/Materials | Evolved 2 slots: Propulsion x1, Utility x1 2260 | -9/Materials | Identified exit to Mines 2651 | -9/Materials | Discovered new exit (range 15) 2680 | -9/Materials | Identified exit to Materials 2927 | -9/Materials | Discovered new exit (range 16) 3016 | -9/Materials | Lost 6 parts (1p3n2w) 3217 | -9/Materials | Identified exit to Storage 3293 | -9/Materials | Build established: Scavenger-Mutant 3723 | -9/Materials | Discovered exit to Materials (range 8) 3999 | -9/Materials | Discovered exit to Materials (range 16) 4223 | -9/Materials | Build established: Mutant 4254 | -9/Materials | Repaired Lgt. Armor Plating? 4306 | -9/Materials | Repaired Katana 4407 | -9/Materials | Repaired Arm. Wheel 4439 | -9/Materials | Repaired Arm. Wheel 4471 | -9/Materials | Repaired Arm. Wheel 4522 | -9/Materials | Repaired Cld. Ion Engine 4560 | -9/Materials | Repaired Lgt. Nuclear Core 4598 | -9/Materials | Repaired Katana 4617 | -9/Materials | Discovered exit to Storage (range 17) 4721 | -9/Materials | Core integrity fell below 50% 4783 | -9/Materials | Entered Storage 4824 | -9/Storage | Repaired Arm. Wheel? 4876 | -9/Storage | Repaired Arm. Wheel 4908 | -9/Storage | Repaired Arm. Wheel 4934 | -9/Storage | Repaired Sensor Array 4966 | -9/Storage | Repaired Hvy. Assault Rifle 5014 | -9/Storage | Met 01-MTF 5143 | -9/Storage | Build established: Hauler-Mutant 5260 | -9/Storage | Identified exit to Recycling 5607 | -9/Storage | Repaired Cld. Ion Engine 5639 | -9/Storage | Repaired Arm. Wheel 5671 | -9/Storage | Repaired Arm. Wheel 5723 | -9/Storage | Repaired Imp. Assault Rifle 5756 | -9/Storage | Destroyed 01-MTF 5760 | -9/Storage | Found 01-MTF's Shockpuncher 5779 | -9/Storage | Found Prototype Device 5851 | -9/Storage | Repaired Imp. Weapon Shielding 5918 | -9/Storage | Repaired Adv. Thermal Shield 5925 | -9/Storage | Identified 01-MTF's Autohacker 6507 | -9/Storage | Entered Recycling 6508 | -9/Recycling | Found Scrap Engine 6582 | -9/Recycling | Identified exit to Factory 8750 | -9/Recycling | Build established: Hauler-Construct 9362 | -9/Recycling | Entered Factory 9362 | -7/Factory | Accompanied by 3 allies 9362 | -7/Factory | Evolved 4 slots: Power x1, Utility x2, Weapon x1 9455 | -7/Factory | Discovered new exit (range 15) 9592 | -7/Factory | Identified exit to Lower Caves 9700 | -7/Factory | Discovered new exit (range 13) 9721 | -7/Factory | Discovered new exit (range 16) 9743 | -7/Factory | Identified exit to Factory 10637 | -7/Factory | Garrison activated, responded to threat 10667 | -7/Factory | Cargo convoy interrupted 10763 | -7/Factory | Found Prototype Processor 10763 | -7/Factory | Identified Exp. Targeting Computer 10765 | -7/Factory | Destroyed 11 combat bots 10765 | -7/Factory | Found Prototype Hackware 10771 | -7/Factory | Found Exp. Targeting Computer 10875 | -7/Factory | Repaired Imp. Sensor Array 10914 | -7/Factory | Repaired Minigun 10924 | -7/Factory | Repaired Imp. Light Armor Plating 10962 | -7/Factory | First assault squad dispatched 11465 | -7/Factory | Core destroyed Last Messages --------------- 11465_ Hcp. Matter Pod crushed and broken. 11465_ Arm. Wheel crushed and broken. 11465_ Biomechanical Wings crushed and broken. 11465_ Xenon Bombardment Thruster crushed and broken. 11465_ Imp. Weapon Shielding crushed and broken. 11465_ Authchip [Device] crushed and broken. 11465_ Imp. Targeting Computer crushed and broken. 11465_ Transmission Jammer crushed and broken. 11465_ Cld. Gravmag System crushed and broken. 11465_ Corrupted Authchip [R/Combat] crushed and broken. 11465_ Imp. Flight Unit crushed and broken. 11465_ Authchip [Propulsion] crushed and broken. 11465_ Corrupted Authchip [R/Combat] crushed and broken. 11465_ Prototype Hackware crushed and broken. 11465_ Xenon Bombardment Thruster crushed and broken. 11465_ Hovering XBT-Armored Exoskeleton core remains intact and functional. 11465_ Nuclear-Deuterium Core core remains intact and functional. 11465_ Hovering XBT-Armored Exoskeleton core remains intact and functional. Map ----- +----------------------------------------------------+ | | | | | | | | | | | | | | | | | | | | | | | | | | | | | | | | | | | | | | | | | ?????????????????????????????????????????????????? | | ##???????????????????????????????????????????????? | | #################????????#######????????????????? | | ! # / ! #????????# ################?? | | #"" ! ##########==*c ### | | %[ #"" / + ]=!!!@c=]Hc #! | | % #"" # [=!###!!! # | | "Y" #S """ """ # #?# ##+######### # | | """ #"" """ """ + #?#######=! #?# # " | | #####"" """ """ ###!####??????#*=!% #?# + " | | ????#"" #?#=#?##########![ #?# # " | | ????# """ """ #?#*#?# #[] !! #?# # | | ????# """ """ #?#=#?# """ # ! #?# # | | ????# """ """ ###%### """ # ! #?# ### | | ????# ! # # """ # #?# ### | | ###########+###### "" # # #?# # | | T + """ # #?# # | | ### # """ ############ # | | % #?# /# """ #???# # # | | #?## ## #???# + + " | | #??# ############### # # " | | #??# !###### # # # " | | #??# !==*=!! %< + !# # " | | #+##############??# !=###### # # ### | | "" #???????# =*#????##### !# #?? | | ""S #?????### !!#????????# # #?? | | "" #?????# %#????????# # #?? | | """ #???###+##+### #????????# # #?? | | """ #???# # ########## # #?? | | """ ! #???# """" # # !] # # #?? | +----------------------------------------------------+ Best States ------------- Heat Dissipation 54 Energy Generation 28 Energy Capacity 780 Matter Stores 300 Matter Capacity 300 Sight Range 16 Robot Scan Range 15 Terrain Scan Density 10 Resistance: KI 20 Resistance: TH 20 Resistance: EX 20 Resistance: EM 20 Resistance: I 20 Resistance: S 20 Resistance: P 20 Evasion (%) 66 Targeting Accuracy 12 Recoil Reduction 1 Offensive Hacking 10 Authchip Count 14 Item Schematics ----------------- Imp. Flight Unit | -9/Materials | Scanalyzed Arm. Wheel | -9/Materials | Scanalyzed Hpw. Tractor Beam | -9/Materials | Scanalyzed Katana | -9/Materials | Scanalyzed Lgt. Nuclear Core | -9/Materials | Scanalyzed Plasma Cutter | -9/Materials | Scanalyzed Imp. Heat Sink | -9/Materials | Scanalyzed Rocket Launcher | -9/Materials | Scanalyzed Grenade Launcher | -9/Materials | Scanalyzed Lgt. Armor Plating | -9/Materials | Scanalyzed Hvy. Assault Rifle | -9/Materials | Scanalyzed Disposable Heat Sink | -9/Materials | Scanalyzed Hcp. Matter Pod | -9/Materials | Scanalyzed Terrain Scanner | -9/Materials | Scanalyzed Imp. Targeting Computer | -9/Materials | Scanalyzed Datajack | -9/Materials | Scanalyzed Reaction Control System | -9/Storage | Hacked Cesium-ion Thruster | -9/Storage | Hacked Launcher Guidance Computer | -9/Storage | Hacked Imp. Sensor Array | -9/Recycling | Hacked Gatling Laser | -9/Recycling | Hacked Arc Projector | -9/Recycling | Hacked Imp. Terrain Scanner | -9/Recycling | Hacked Hpw. Shotgun | -9/Recycling | Hacked Centrium Light Armor Plating | -7/Factory | Scanalyzed Exp. Heat Sink | -7/Factory | Scanalyzed Mak. Cloaking Device | -7/Factory | Scanalyzed Imp. Datajack | -7/Factory | Scanalyzed Nuclear Pulse Array | -7/Factory | Hacked Hvy. Machine Gun | -7/Factory | Hacked Transmission Jammer | -7/Factory | Hacked Flexi-carbon Leg | -7/Factory | Hacked Imp. Field Recycling Unit | -7/Factory | Hacked Hvy. Plasma Cannon | -7/Factory | Hacked Med. Treads | -7/Factory | Hacked Launcher Loader | -7/Factory | Hacked Power Amplifier | -7/Factory | Hacked Hvy. Shock Bomb Launcher | -7/Factory | Hacked Arm. Huge Wheel | -7/Factory | Hacked Imp. Actuator Array | -7/Factory | Hacked Recoil Nullifier | -7/Factory | Hacked Plasma Cannon | -7/Factory | Hacked Enh. Nuclear Core | -7/Factory | Hacked Fusion Compressor | -7/Factory | Hacked Robot Schematics ------------------ T-07 Excavator | -9/Recycling | Hacked L-31 Rogue | -9/Recycling | Hacked L-41 Fighter | -7/Factory | Hacked Fabricated ------------ Nothing Alien Tech Used ----------------- None Achievements -------------- None Challenges ------------ None Game ------ Seed MediumDynamicAccelerator Manual? 0 Play Time 02:26:25 Cumulative 547.0 hours Start 2023.08.14 @ 09:13:35 End 2023.08.14 @ 20:59:33 Sessions 1 Manual Loads 0 Difficulty Adventurer Special Mode None Game No. 107 Rogue 63 Adventurer 44 Explorer 0 Win Type - Total 21 Types 6/3/1/5/1/0/1/2/2 Lore% 87 Gallery% 93 Achievement% 79 Wizard Run 0 Options --------- ASCII 0 Keyboard 0 Movement Mouse Keybinds 0 Fullscreen 2 Font 18/X11 Map View 76x50 Tactical HUD 1 Map Filters NONE Filters NONE Steam 1 RUN: 9bf30245-16de-4d3c-86d8-f819037c3fd3